bitfinex-derivatives/quotes_ETHF0:USTF0_20250923
["timestamp","ask_amount","ask_price","bid_price","bid_amount"]
[1758643511521,1.20359,4179.7,4179.6,1.1929]
[1758643512427,0.4401,4179.7,4179.6,1.1929]
[1758643512923,0.2124,4180.1,4180.0,0.1216]
[1758643513129,0.64275,4180.1,4180.0,1.31496]
[1758643513923,0.2124,4180.1,4180.0,1.31496]
[1758643514225,3.2078,4180.2,4180.1,1.19335]
[1758643514915,3.974,4182.2,4180.0,0.3646]
[1758643514916,3.2078,4180.7,4180.6,1.1933]
[1758643516127,3.4202,4181.3,4181.2,0.763]
[1758643516728,3.6251,4181.3,4181.2,1.19324]
[1758643517125,3.9432,4181.3,4181.2,1.19324]
[1758643517328,3.6251,4181.3,4181.2,1.19324]
[1758643517720,3.2078,4181.3,4181.2,1.19324]
[1758643518021,0.2124,4181.8,4181.7,1.19318]
[1758643519133,0.2124,4181.8,4181.7,0.763]
[1758643519332,0.4173,4181.8,4181.7,0.763]
[1758643519723,0.4173,4181.8,4181.7,0.2195]
[1758643519921,0.7354,4181.6,4181.5,1.0904]
[1758643520119,3.4202,4181.9,4181.8,0.763]
[1758643520427,3.4202,4181.9,4181.8,1.19317]
[1758643520628,3.6251,4181.9,4181.8,0.763]
[1758643520833,3.9432,4181.9,4181.8,0.763]
[1758643521128,3.6251,4181.9,4181.8,0.763]
[1758643522335,3.9432,4181.9,4181.8,0.763]
[1758643522932,3.9432,4181.9,4181.8,1.19317]
[1758643523338,4.37336,4181.9,4181.8,1.19317]
[1758643523629,4.37336,4181.9,4181.8,0.763]
[1758643523831,4.37336,4181.9,4181.8,1.19317]
[1758643524726,4.37336,4181.9,4181.8,0.3191]
[1758643524934,0.7247,4181.7,4181.6,1.19529]
[1758643525133,0.125,4181.5,4181.1,0.74715]
[1758643525326,0.2056,4180.9,4180.8,0.3169]
[1758643525526,0.2056,4180.9,4180.8,0.43028]
[1758643525527,0.4124,4180.9,4180.8,0.43028]
[1758643525727,1.15497,4180.9,4180.8,0.43028]
[1758643526039,0.7247,4180.8,4180.7,0.67329]
[1758643526332,0.7247,4180.8,4180.7,1.19539]
[1758643526629,1.15498,4180.8,4180.7,1.19539]
[1758643526838,4.36278,4180.8,4180.7,0.43029]
[1758643527834,4.36278,4180.8,4180.7,0.74719]
[1758643528335,3.9325,4180.8,4180.7,0.74719]
[1758643528533,3.9325,4180.8,4180.7,0.95239]
[1758643529239,3.6202,4180.8,4180.6,0.4303]
[1758643529436,0.7247,4180.3,4180.1,0.43034]
[1758643529734,0.23921,4180.7,4180.1,0.67334]
[1758643529735,0.7247,4180.2,4180.1,0.67334]
[1758643530233,0.7247,4180.2,4180.1,1.19544]
[1758643531329,0.7247,4180.2,4180.1,0.43034]
[1758643531527,0.7247,4180.1,4180.0,0.74726]
[1758643531925,1.15505,4180.1,4180.0,0.43036]
[1758643532124,0.43036,4180.1,4180.0,0.43036]
[1758643532328,0.43037,4179.9,4179.8,0.43038]
[1758643532535,0.43039,4179.7,4179.5,0.243]
[1758643532824,0.43039,4179.7,4179.5,0.4304]
[1758643533029,0.4124,4179.6,4179.5,0.6356]
[1758643533229,0.7247,4179.6,4179.5,0.9525]
[1758643533438,0.7247,4179.6,4179.5,0.5221]
[1758643533745,3.9325,4179.6,4179.5,0.5221]
[1758643534035,3.9325,4179.6,4179.5,0.3169]
[1758643534232,4.05061,4179.6,4179.4,0.74731]
[1758643534430,0.7247,4179.5,4179.4,0.95251]
[1758643535030,0.7247,4179.5,4179.4,1.16851]
[1758643536231,0.4124,4179.5,4179.4,1.16851]
[1758643536532,3.2078,4179.6,4179.5,0.8674]
[1758643536737,0.7247,4179.7,4179.6,0.7473]
[1758643536933,0.7247,4179.7,4179.6,0.9525]
[1758643537134,0.7247,4179.7,4179.6,1.1685]
[1758643537835,0.4124,4179.7,4179.6,1.1685]
[1758643541130,0.43038,4179.8,4179.7,0.43039]
[1758643541337,0.5191,4180.0,4179.9,0.7381]
[1758643541634,3.2078,4180.1,4180.0,1.29776]
[1758643541941,3.2078,4180.6,4180.5,1.29771]
[1758643542139,3.2078,4180.6,4180.5,1.54071]
[1758643543443,3.6202,4181.1,4181.0,1.29766]
[1758643543736,4.05045,4181.1,4181.0,0.8674]
[1758643544041,4.36275,4181.1,4181.0,0.5221]
[1758643545238,3.9325,4181.1,4181.0,0.95236]
[1758643545443,4.36275,4181.1,4181.0,0.95236]
[1758643545742,3.9325,4181.1,4181.0,0.95236]
[1758643545936,3.6202,4181.1,4181.0,1.29766]
[1758643546531,0.43026,4181.0,4180.6,0.3169]
[1758643546841,0.7247,4180.3,4180.2,0.95244]
[1758643547433,0.4124,4180.3,4180.2,0.243]
[1758643547638,0.7247,4180.3,4180.2,0.67334]
[1758643547840,1.15503,4180.3,4180.2,0.99024]
[1758643548039,0.7247,4180.3,4180.2,1.19544]
[1758643548548,0.4124,4180.3,4180.2,1.41144]
[1758643548750,0.2068,4180.3,4180.2,1.41144]
[1758643549639,0.4124,4180.3,4180.2,1.41144]
[1758643550041,0.2068,4180.3,4180.2,1.41144]
[1758643551544,0.4124,4180.7,4180.6,0.7381]
[1758643551746,0.7247,4180.7,4180.6,0.7381]
[1758643552245,0.4124,4180.7,4180.6,0.7381]
[1758643553546,0.2068,4180.7,4180.6,0.7381]
[1758643554638,0.72072095,4180.7,4180.6,0.7381]
[1758643556343,0.72072095,4180.7,4180.6,1.1684]
[1758643557247,1.25372095,4180.7,4180.6,1.1684]
[1758643557446,1.68401095,4180.7,4180.6,0.9524]
[1758643558752,1.68401095,4180.7,4180.6,0.4303]
[1758643559441,1.68401095,4180.7,4180.0,0.64496]
[1758643559442,0.4196,4180.1,4180.0,0.64496]
[1758643559647,0.7443,4180.1,4180.0,0.97106]
[1758643559954,0.7443,4180.1,4180.0,1.30746]
[1758643564150,3.2078,4180.3,4180.0,1.30746]
[1758643564151,3.5325,4180.3,4180.1,0.4189]
[1758643564350,1.2574335,4180.2,4180.1,1.17535]
[1758643564558,0.9327335,4180.2,4180.1,1.17535]
[1758643565755,0.5131335,4180.2,4180.1,1.17535]
[1758643566254,0.7244335,4180.2,4180.1,1.17535]
[1758643566454,1.2574335,4180.2,4180.1,1.17535]
[1758643566850,0.9327335,4180.2,4180.1,1.17535]
[1758643567956,3.2078,4180.3,4180.2,0.43034]
[1758643568146,3.2078,4180.3,4180.2,1.17534]
[1758643569962,3.6274,4180.3,4180.2,1.41834]
[1758643570156,3.9521,4180.3,4180.2,0.5407]
[1758643570350,0.2083,4179.7,4179.3,1.07609]
[1758643570545,0.4196,4179.7,4179.1,0.3261]
[1758643570860,0.4196,4179.2,4179.1,1.17546]
[1758643571153,0.4196,4179.2,4178.8,3.2078]
[1758643571154,0.43047,4179.0,4178.8,0.43049]
[1758643571359,0.7493,4178.9,4178.8,0.771]
[1758643571854,0.7493,4178.9,4178.8,0.528]
[1758643572051,1.26292158,4178.9,4178.8,0.528]
[1758643572451,1.26256087,4178.9,4178.8,0.528]
[1758643574149,1.26256087,4178.9,4178.8,0.7392]
[1758643574459,0.2092,4178.9,4178.8,0.7392]
[1758643575557,3.5269,4179.3,4178.8,0.7392]
[1758643575558,3.2078,4179.3,4178.8,0.7392]
[1758643575756,3.2078,4179.3,4179.2,1.16965]
[1758643576857,0.7493,4179.5,4179.4,0.43042]
[1758643577057,0.4302,4179.5,4179.4,1.16962]
[1758643578472,0.2092,4179.5,4179.4,1.16962]
[1758643578657,3.417,4179.8,4179.7,1.16959]
[1758643578859,3.2078,4180.3,4180.2,1.16954]
[1758643579161,3.638,4180.3,4180.2,1.16954]
[1758643579461,3.9571,4180.3,4180.2,1.16954]
[1758643579760,3.2078,4180.3,4180.2,1.16954]
[1758643579949,3.417,4180.3,4180.2,1.16954]
[1758643580550,3.638,4180.3,4180.2,1.16954]
[1758643581165,3.638,4180.3,4179.8,1.20138]
[1758643581166,0.7493,4179.9,4179.8,1.20138]
[1758643581368,0.2092,4179.9,4179.8,1.41258]
[1758643581661,3.417,4180.3,4180.2,1.16954]
[1758643583464,3.2078,4180.3,4180.2,1.16954]
[1758643584162,3.5181,4181.3,4180.7,0.4382]
[1758643584469,0.2213,4180.8,4180.7,1.42959]
[1758643584763,3.2078,4181.3,4181.2,1.18654]
[1758643584956,3.2078,4181.3,4181.2,1.42954]
[1758643585364,3.2078,4181.9,4181.8,0.7563]
[1758643585666,3.4291,4181.9,4181.8,1.18648]
[1758643586071,3.6522,4181.9,4181.8,1.18648]
[1758643587568,3.9625,4181.9,4181.8,1.18648]
[1758643587763,0.4444,4181.1,4181.0,0.1313]
[1758643587964,0.7547,4181.1,4181.0,1.09346]
[1758643588369,0.7547,4181.1,4181.0,0.8876]
[1758643588671,0.7547,4180.9,4180.8,0.4568]
[1758643588971,0.4444,4180.9,4180.8,0.9993]
[1758643590670,0.65155,4181.2,4181.1,0.7563]
[1758643590863,3.2078,4181.3,4181.2,0.3181]
[1758643591069,3.4291,4181.3,4181.2,0.7563]
[1758643592070,3.4291,4181.3,4181.2,0.9993]
[1758643592765,0.2213,4181.3,4181.2,0.9993]
[1758643593361,0.2213,4181.3,4180.6,0.7484]
[1758643593362,0.4444,4180.7,4180.6,0.7484]
[1758643593564,0.7547,4180.4,4180.3,0.99143]
[1758643594267,0.4444,4180.1,4179.5,3.3391]
[1758643594471,0.7547,4179.8,4179.7,0.74849]
[1758643594769,0.7547,4179.8,4179.7,0.43039]
[1758643594966,1.18509,4179.8,4179.7,0.3181]
[1758643595169,1.18509,4179.8,4179.7,0.9623]
[1758643595362,0.7547,4179.8,4179.7,0.9623]
[1758643595759,0.4444,4179.8,4179.7,0.9623]
[1758643596373,0.4444,4179.8,4179.7,1.1867]
[1758643598567,0.2213,4179.8,4179.7,1.1867]
[1758643599874,0.4444,4179.8,4179.7,1.4307]
[1758643600268,0.2213,4179.8,4179.7,1.4307]
[1758643601574,0.3103,4180.1,4180.0,0.1313]
[1758643601575,0.2213,4180.1,4180.0,0.1313]
[1758643601880,4.08254,4180.2,4180.1,1.18665]
[1758643602170,4.39284,4180.2,4180.1,0.5319]
[1758643602384,1.18507,4180.0,4179.9,0.43038]
[1758643602675,0.4444,4180.0,4179.9,1.18668]
[1758643602976,0.87477,4180.0,4179.9,1.18668]
[1758643603373,1.18507,4180.0,4179.9,0.96228]
[1758643603777,0.4444,4180.0,4179.9,1.18668]
[1758643604270,0.87477,4180.0,4179.9,1.18668]
[1758643604869,1.18507,4180.0,4179.9,1.18668]
[1758643605372,1.18507,4180.0,4179.9,0.7563]
[1758643605575,1.18507,4180.0,4179.5,0.1313]
[1758643605576,0.4444,4179.6,4179.5,1.09362]
[1758643605775,4.39291,4179.6,4179.5,1.33662]
[1758643606079,4.39291,4179.6,4179.5,1.20532]
[1758643606373,0.87485,4179.2,4179.1,0.7563]
[1758643606574,1.18515,4179.2,4179.1,0.5319]
[1758643606772,0.3103,4179.0,4178.9,0.243]
[1758643606973,0.7547,4179.0,4178.9,0.243]
[1758643607369,0.7547,4178.7,4178.6,0.5319]
[1758643607674,0.43049,4178.8,4177.8,1.07646]
[1758643607675,0.43052,4178.5,4178.3,0.43053]
[1758643607871,0.7547,4178.4,4178.3,0.5319]
[1758643608068,0.4444,4178.2,4177.9,0.43058]
[1758643608273,0.0645,4178.5,4177.9,0.43058]
[1758643608274,3.9625,4178.1,4178.0,0.7749]
[1758643609281,4.39306,4178.1,4178.0,0.7749]
[1758643610275,4.39306,4178.1,4178.0,0.5319]
[1758643611479,3.6522,4178.1,4178.0,0.8876]
[1758643613579,3.2078,4178.1,4178.0,0.8876]
[1758643613781,3.4213,4178.1,4178.0,0.8876]
[1758643613980,3.9538,4178.1,4178.0,0.7749]
[1758643614676,3.9538,4178.1,4177.7,0.3147]
[1758643614677,0.65209,4177.8,4177.7,0.3147]
[1758643614870,0.435,4177.6,4177.5,1.08572]
[1758643615178,0.746,4177.6,4177.5,0.6551]
[1758643615377,0.746,4177.3,4177.2,1.19985]
[1758643615777,0.435,4177.3,4177.2,1.41035]
[1758643616583,3.4213,4177.6,4177.5,1.29622]
[1758643617084,0.2135,4177.6,4177.5,1.29622]
[1758643617381,0.746,4177.6,4177.5,1.29622]
[1758643618982,0.679,4178.0,4177.9,1.16628]
[1758643619480,3.2078,4178.6,4178.5,1.29612]
[1758643619682,3.85176,4179.1,4179.0,1.29607]
[1758643619876,3.6428,4179.1,4179.0,1.29607]
[1758643620188,4.38426,4179.1,4179.0,1.29607]
[1758643620377,3.6428,4179.1,4179.0,1.29607]
[1758643620686,4.38426,4179.1,4178.9,0.43048]
[1758643620982,0.746,4179.0,4178.9,0.74518]
[1758643621181,0.746,4179.0,4178.1,0.5252]
[1758643621182,0.2135,4178.2,4178.1,0.5252]
[1758643621382,0.2135,4178.2,4178.1,1.16626]
[1758643622280,0.64405,4178.2,4178.1,1.16626]
[1758643622482,0.2135,4178.2,4178.1,1.16626]
[1758643622987,0.64405,4178.2,4178.1,1.16626]
[1758643623676,0.2135,4178.2,4178.1,1.16626]
[1758643623877,0.86555,4178.2,4178.1,0.7357]
[1758643624074,0.311,4178.1,4178.0,0.244]
[1758643624278,0.746,4178.1,4178.0,0.7692]
[1758643624879,0.746,4178.1,4177.5,0.1299]
[1758643624880,0.43059,4177.9,4177.5,0.1299]
[1758643625082,1.17659,4177.9,4177.8,0.5252]
[1758643625982,0.746,4177.9,4177.8,0.95579]
[1758643626187,0.435,4177.9,4177.8,1.16629]
[1758643626581,0.86558,4177.9,4177.8,1.16629]
[1758643628277,0.435,4177.9,4177.8,1.16629]
[1758643628683,0.2135,4177.9,4177.8,1.16629]
[1758643629385,0.64408,4177.9,4177.8,1.16629]
[1758643629688,0.2135,4177.9,4177.8,1.16629]
[1758643630185,0.64408,4177.9,4177.8,1.16629]
[1758643630993,0.2135,4177.9,4177.8,1.16629]
[1758643631389,0.64408,4177.9,4177.8,1.16629]
[1758643631584,1.16298,4177.9,4177.8,0.7357]
[1758643631888,1.16298,4177.9,4177.8,1.16629]
[1758643634090,0.85191,4177.6,4177.5,0.9022]
[1758643634286,0.7311,4177.4,4177.3,0.5283]
[1758643634485,3.9389,4177.4,4177.3,0.5283]
[1758643634685,4.36953,4177.4,4177.3,0.5283]
[1758643634888,4.05967,4178.0,4177.9,0.2229]
[1758643635090,5.1248451,4178.0,4177.9,0.5283]
[1758643635895,4.8854751,4178.0,4177.9,0.95888]
[1758643636197,1.16171,4177.7,4177.6,0.5283]
[1758643636383,0.85193,4177.5,4177.4,0.43063]
[1758643636588,0.85193,4177.5,4177.4,0.65353]
[1758643636589,4.8855351,4177.5,4177.4,0.65353]
[1758643636796,4.4549051,4177.5,4177.4,0.95893]
[1758643637098,4.1451051,4177.5,4177.4,1.17993]
[1758643637694,3.9360051,4177.5,4177.4,1.17993]
[1758643639302,4.1451051,4177.5,4177.4,1.17993]
[1758643639501,4.8855251,4177.5,4177.4,1.17993]
[1758643639906,3.7238051,4177.5,4177.4,0.43063]
[1758643640210,4.8855251,4177.5,4177.4,0.5283]
[1758643640507,4.1544251,4177.5,4177.4,0.43063]
[1758643640709,4.4549051,4177.5,4177.4,0.95893]
[1758643641009,4.8855251,4177.5,4177.4,0.95893]
[1758643641197,4.8855251,4177.5,4177.4,0.43063]
[1758643642508,4.8855251,4177.5,4177.4,0.95893]
[1758643642704,4.4549051,4177.5,4177.4,0.95893]
[1758643643207,4.8855251,4177.5,4177.4,0.5283]
[1758643643414,1.16811,4176.7,4176.2,0.317]
[1758643643714,0.7374,4176.4,4176.3,0.96505]
[1758643643913,1.68519557,4176.4,4176.1,0.43076]
[1758643644203,0.84681,4175.7,4175.4,0.317]
[1758643644410,3.9452,4175.5,4175.4,0.96514]
[1758643644709,3.6238,4175.5,4175.4,1.16904]
[1758643646310,3.4108,4176.0,4175.9,0.43078]
[1758643646508,3.93298016,4176.0,4175.9,1.16898]
[1758643647005,3.4108,4176.0,4175.9,1.16898]
[1758643647811,3.2078,4176.0,4175.9,1.16898]
[1758643648112,3.4108,4176.0,4175.9,1.16898]
[1758643648614,3.9452,4176.5,4176.4,0.2173]
[1758643648818,0.416,4176.3,4176.2,0.64805]
[1758643649018,0.7374,4176.3,4176.2,0.2173]
[1758643649703,0.7374,4176.3,4176.2,0.5343]
[1758643650810,1.16816,4176.2,4176.0,0.43077]
[1758643651008,0.7374,4176.1,4176.0,0.43077]
[1758643651713,1.16817,4176.1,4176.0,0.43077]
[1758643652212,0.203,4175.9,4175.8,0.74779]
[1758643652406,0.203,4175.9,4175.0,0.1303]
[1758643652407,0.84682,4175.6,4175.0,0.1303]
[1758643652612,0.84684,4175.4,4175.2,0.43086]
[1758643652811,1.16825,4175.3,4175.2,0.64816]
[1758643653212,1.16825,4175.3,4175.2,0.96516]
[1758643653612,1.16825,4175.3,4175.2,0.5343]
[1758643653912,0.63386,4175.2,4175.1,0.43086]
[1758643654118,1.16826,4175.2,4175.1,0.43086]
[1758643654314,3.4108,4176.1,4176.0,0.2173]
[1758643654623,3.2078,4176.1,4176.0,1.29928]
[1758643655011,3.9452,4176.1,4175.6,0.317]
[1758643655217,0.203,4175.6,4175.5,1.29933]
[1758643655411,0.3214,4176.0,4175.9,0.43079]
[1758643655618,0.416,4175.9,4175.8,0.5343]
[1758643655819,0.7374,4175.9,4175.8,0.5343]
[1758643656021,1.16819,4175.9,4175.8,0.5343]
[1758643656218,0.7374,4175.7,4175.6,0.96511]
[1758643657223,1.16821,4175.7,4175.6,0.96511]
[1758643657826,0.84681,4175.7,4175.6,0.5343]
[1758643658123,1.16821,4175.7,4175.6,0.96512]
[1758643658325,0.416,4175.7,4175.6,1.16902]
[1758643660625,0.416,4175.7,4175.6,0.7382]
[1758643660921,0.416,4175.7,4175.6,1.16902]
[1758643661223,0.6338,4175.9,4175.8,0.2173]
[1758643661526,1.1682,4175.9,4175.8,0.5343]
[1758643661727,1.1682,4175.9,4175.8,0.9651]
[1758643661914,1.1682,4175.9,4175.8,0.5343]
[1758643662427,1.1682,4175.9,4175.8,0.9651]
[1758643662627,1.16819,4175.9,4175.8,1.169]
[1758643662827,1.16819,4175.9,4175.8,0.7382]
[1758643664525,1.16822,4175.6,4175.5,0.8685]
[1758643664725,4.37602,4175.6,4175.5,1.29933]
[1758643665128,0.84685,4175.3,4175.2,0.5343]
[1758643665330,1.16825,4175.3,4175.2,0.5343]
[1758643665627,0.84685,4175.3,4175.2,1.16906]
[1758643666021,3.5292,4175.6,4175.2,0.7382]
[1758643666219,3.2078,4175.6,4175.5,1.29933]
[1758643667128,3.4108,4175.6,4175.5,1.29933]
[1758643667532,3.84162,4175.6,4175.5,1.29933]
[1758643668533,3.2078,4175.6,4175.5,1.29933]
[1758643668828,1.16821,4175.7,4175.6,0.5343]
[1758643669031,4.37601,4175.7,4175.6,0.317]
[1758643669338,4.37601,4175.7,4175.6,0.74782]
[1758643669532,4.37601,4175.7,4175.6,0.317]
[1758643670623,0.416,4175.3,4175.2,1.16905]
[1758643670836,0.84685,4175.3,4175.2,1.16905]
[1758643671324,1.16825,4175.3,4175.2,0.5343]
[1758643672129,1.69413536,4175.3,4175.2,0.5343]
[1758643673727,1.69413536,4175.3,4175.2,0.96516]
[1758643675132,1.26328536,4175.3,4175.2,0.96516]
[1758643675335,1.69456931,4175.3,4175.2,1.16906]
[1758643676235,1.26371931,4175.3,4175.2,1.16906]
[1758643676544,3.2078,4175.7,4175.6,0.43082]
[1758643676728,3.73405894,4175.7,4175.6,1.17582]
[1758643676929,3.2078,4175.7,4175.6,1.17582]
[1758643678234,3.4264,4175.7,4175.6,1.17582]
[1758643678433,3.2078,4175.7,4175.6,1.17582]
[1758643678932,1.19297,4176.1,4176.0,0.95737]
[1758643679139,1.71923456,4176.1,4176.0,0.95737]
[1758643679741,1.71923456,4176.1,4176.0,0.5266]
[1758643680243,1.19301,4175.8,4175.7,0.5266]
[1758643680441,1.71927456,4175.8,4175.7,0.95741]
[1758643681036,1.71927456,4175.8,4175.7,1.17581]
[1758643681437,1.28846456,4175.8,4175.7,1.17581]
[1758643681636,1.71926456,4175.8,4175.7,1.17581]
[1758643682837,0.86202,4175.6,4175.5,1.09192]
[1758643683041,4.92708456,4175.6,4175.5,0.5266]
[1758643683248,1.19305,4175.3,4175.2,0.95746]
[1758643683440,0.7622,4175.3,4175.2,0.95746]
[1758643683634,0.2186,4175.3,4175.2,1.17586]
[1758643684242,0.64945,4175.3,4175.2,1.17586]
[1758643684440,0.43085,4175.3,4175.2,0.43086]
[1758643684644,0.4312,4175.3,4175.2,1.17586]
[1758643685037,1.19305,4175.3,4175.2,1.17586]
[1758643685439,0.86205,4175.3,4175.2,1.17586]
[1758643685644,1.19305,4175.3,4175.2,1.17586]
[1758643685941,1.19305,4175.3,4175.2,0.745]
[1758643686141,1.19305,4175.3,4175.2,1.17586]
[1758643686440,1.19305,4175.3,4175.2,0.5266]
[1758643686441,1.71868248,4175.3,4175.2,0.5266]
[1758643687453,0.5436,4175.1,4175.0,0.5266]
[1758643687638,4.49563248,4175.1,4175.0,0.5266]
[1758643687842,4.92650248,4175.1,4175.0,0.5266]
[1758643688049,1.19309,4174.9,4174.8,1.2015]
[1758643688247,1.19309,4174.9,4174.8,0.5266]
[1758643688450,0.86212,4174.6,4174.5,0.567]
[1758643688650,1.19312,4174.6,4174.5,0.567]
[1758643688949,1.19312,4174.6,4174.5,0.8795]
[1758643689853,1.19312,4174.6,4174.5,1.31043]
[1758643690050,1.19312,4174.6,4174.5,0.8795]
[1758643690844,3.97,4174.6,4174.0,0.1345]
[1758643691051,0.4312,4174.2,4174.1,0.4325]
[1758643691244,1.19316,4174.2,4174.1,0.5266]
[1758643692657,1.19316,4174.2,4174.1,0.95757]
[1758643693754,3.85462,4174.6,4174.5,0.8652]
[1758643693958,4.37899613,4174.6,4174.5,0.8652]
[1758643694159,4.90559613,4174.6,4174.5,0.5178]
[1758643694359,0.85815,4174.3,4174.2,0.5178]
[1758643694660,1.17345,4174.3,4174.2,0.5178]
[1758643696955,1.17345,4174.3,4174.2,0.94876]
[1758643698761,3.2078,4174.6,4174.5,1.29613]
[1758643699868,3.63872,4174.6,4174.5,1.29613]
[1758643700069,3.2078,4174.6,4174.5,1.29613]
[1758643700668,0.4309,4174.8,4174.7,1.1638]
[1758643700866,0.6468,4174.8,4174.7,1.1638]
[1758643702064,0.8581,4174.8,4174.7,1.1638]
[1758643702267,1.1734,4174.8,4174.7,0.7329]
[1758643702464,0.85812,4174.6,4174.5,0.3039]
[1758643702765,4.38122,4174.6,4174.5,0.5178]
[1758643703564,4.38122,4174.6,4174.5,0.94873]
[1758643703757,4.38122,4174.6,4174.5,0.5178]
[1758643703963,0.4338,4174.4,4174.3,0.546]
[1758643704164,1.17804,4174.4,4174.3,0.546]
[1758643704361,3.2078,4174.6,4174.0,0.43097]
[1758643704362,0.43097,4174.1,4174.0,0.43097]
[1758643704568,1.17807,4174.1,4174.0,0.3223]
[1758643704767,4.38587,4174.1,4174.0,0.546]
[1758643705672,1.17813,4173.5,4173.4,0.3223]
[1758643705870,4.62864244,4173.5,4173.4,0.546]
[1758643706167,0.86486,4173.3,4173.2,0.546]
[1758643706375,0.86488,4173.1,4173.0,0.9805]
[1758643706672,1.42089244,4173.1,4173.0,0.846]
[1758643707167,0.8573,4173.0,4172.9,0.02396444]
[1758643707365,0.4338,4172.4,4172.3,0.7649]
[1758643707565,0.67651244,4172.4,4172.3,0.7649]
[1758643707765,0.98981244,4172.4,4172.3,0.7649]
[1758643707962,0.43116,4172.3,4172.1,0.3223]
[1758643708159,0.98981244,4172.2,4172.1,0.546]
[1758643708359,0.67651244,4172.2,4172.1,0.7649]
[1758643708777,0.24271244,4172.2,4172.1,0.7649]
[1758643708963,3.2078,4173.0,4172.2,1.07793]
[1758643709164,3.6416,4173.0,4172.9,0.7649]
[1758643709474,3.9549,4173.0,4172.9,0.546]
[1758643710564,0.7471,4172.6,4172.5,0.3478]
[1758643710763,1.17823,4172.6,4172.5,0.2237]
[1758643710965,0.4338,4172.3,4172.2,0.65487]
[1758643711171,0.7471,4172.3,4172.2,0.7649]
[1758643711370,0.4338,4172.1,4172.0,0.6701]
[1758643711578,0.7471,4172.1,4172.0,0.6701]
[1758643711873,1.17835,4171.4,4171.3,0.68120005]
[1758643712070,1.17835,4171.4,4171.3,0.35890005]
[1758643712469,0.7471,4171.4,4171.3,0.90490005]
[1758643712969,0.7471,4171.4,4171.3,0.58260005]
[1758643714176,0.9911,4171.4,4171.3,1e-08]
[1758643714365,1.17841,4170.8,4170.7,0.546]
[1758643716067,0.4338,4170.8,4170.7,0.7649]
[1758643716271,0.2154,4170.8,4170.7,0.7649]
[1758643716481,0.4338,4170.8,4170.7,0.7649]
[1758643716772,0.7471,4170.8,4170.7,0.7649]
[1758643718375,0.7471,4170.8,4170.7,0.546]
[1758643718674,0.7471,4170.8,4170.7,0.7649]
[1758643719070,0.7471,4170.8,4170.5,0.1241]
[1758643719273,0.86517,4170.2,4170.1,0.7649]
[1758643719471,1.17847,4170.2,4170.1,0.546]
[1758643719981,3.4528,4170.4,4169.6,0.7649]
[1758643719982,0.64683,4169.7,4169.6,0.7649]
[1758643720181,0.2154,4169.7,4169.6,0.7649]
[1758643721078,3.5211,4171.4,4170.5,0.1241]
[1758643721280,0.2154,4171.1,4171.0,0.889]
[1758643721473,0.2154,4171.1,4170.5,0.546]
[1758643721474,0.7471,4170.6,4170.5,0.546]
[1758643721782,0.23991802,4170.6,4170.5,0.889]
[1758643722575,3.2078,4171.2,4171.1,1.19618]
[1758643723081,3.4232,4171.2,4171.1,0.7649]
[1758643723273,3.6416,4171.2,4171.1,0.7649]
[1758643723775,3.2078,4171.8,4171.1,0.4426]
[1758643723978,1.17832,4171.7,4171.6,0.2237]
[1758643724180,1.17832,4171.7,4171.6,0.546]
[1758643724382,0.4338,4171.7,4171.6,0.7649]
[1758643727081,3.2078,4172.3,4171.7,0.7649]
[1758643727283,3.6416,4172.3,4172.2,0.7649]
[1758643727586,3.4232,4172.3,4172.2,0.7649]
[1758643727882,3.6416,4172.3,4172.2,0.7649]
[1758643728381,0.43111,4172.7,4172.5,0.1241]
[1758643728682,0.86493,4172.6,4172.3,0.75345]
[1758643728883,0.7471,4172.4,4172.3,0.2237]
[1758643729689,0.7471,4172.1,4172.0,0.6701]
[1758643729982,0.43116,4172.3,4172.1,0.43118]
[1758643730185,0.2154,4172.4,4172.3,1.19606]
[1758643730486,0.43112,4172.7,4172.6,1.19602]
[1758643730686,3.4548,4172.8,4172.6,0.87372]
[1758643730887,0.2154,4172.7,4172.6,0.87372]
[1758643731283,0.2154,4172.7,4172.6,0.7649]
[1758643731487,0.4338,4172.2,4172.1,0.546]
[1758643731782,0.86497,4172.2,4172.1,0.7649]
[1758643731982,0.43119,4172.0,4171.9,3.2078]
[1758643732183,0.4338,4171.9,4171.8,0.97721]
[1758643732382,0.865,4171.9,4171.8,1.19611]
[1758643732581,0.865,4171.9,4171.8,0.7649]
[1758643732978,1.1783,4171.9,4171.8,0.7649]
[1758643733183,1.07813,4171.4,4170.6,0.3057]
[1758643733484,1.07806,4171.7,4171.2,0.3057]
[1758643733485,0.43127,4171.3,4171.2,0.3057]
[1758643733688,0.43127,4171.3,4171.2,0.7423]
[1758643733887,0.85197,4171.3,4171.2,0.7423]
[1758643734085,0.85197,4171.3,4171.0,0.1257]
[1758643734086,0.2161,4170.8,4170.7,0.2145]
[1758643734281,0.4313,4170.9,4170.8,0.3057]
[1758643734488,0.66877769,4170.9,4170.8,0.7423]
[1758643734691,4.29727769,4170.9,4170.8,0.7423]
[1758643737790,4.62987769,4170.9,4170.8,0.5202]
[1758643737988,4.29727769,4170.9,4170.8,0.7423]
[1758643738693,3.86597769,4170.9,4170.8,0.7423]
[1758643738884,3.44527769,4170.9,4170.8,0.7423]
[1758643739281,3.66137769,4170.9,4170.8,0.7423]